bitfinex/quotes_SOLUSD_20250418
["timestamp","ask_amount","ask_price","bid_price","bid_amount"]
[1744982776610,8.29940687,134.53,134.49,15.7977487]
[1744982776826,8.29940687,134.55,134.51,8.29940687]
[1744982777134,8.29940687,134.56,134.52,8.29940687]
[1744982777339,8.29940687,134.55,134.51,15.73333415]
[1744982781216,8.29940687,134.56,134.51,15.73333415]
[1744982783421,8.29940687,134.57,134.52,8.29940687]
[1744982783734,8.29940687,134.57,134.53,8.29940687]
[1744982784140,15.73016896,134.58,134.54,8.29940687]
[1744982784312,15.73016896,134.58,134.54,15.73193606]
[1744982784638,8.29940687,134.58,134.54,15.73193606]
[1744982784813,8.29940687,134.59,134.55,8.29940687]
[1744982785122,8.29940688,134.6,134.56,8.29940687]
[1744982785323,34.29940688,134.6,134.56,8.29940687]
[1744982785732,1e-08,134.6,134.56,8.29940687]
[1744982786317,1e-08,134.6,134.56,15.73059164]
[1744982787841,8.29940688,134.6,134.56,15.73059164]
[1744982788639,15.72888223,134.6,134.56,15.73059164]
[1744982790144,15.72888223,134.6,134.55,8.29940687]
[1744982790438,8.29940687,134.58,134.54,8.29940687]
[1744982791137,8.29940687,134.58,134.53,15.73269312]
[1744982791336,8.29940687,134.58,134.53,30.47269312]
[1744982791962,8.29940687,134.58,134.54,8.29940687]
[1744982792339,8.29940687,134.58,134.54,15.73200287]
[1744982795638,8.29940687,134.59,134.55,8.29940687]
[1744982795848,1e-08,134.6,134.57,8.29940687]
[1744982796344,7.42943034,134.6,134.57,8.29940687]
[1744982796747,7.42943034,134.6,134.56,8.29940687]
[1744982796916,15.72883721,134.6,134.56,8.29940687]
[1744982797944,8.29940687,134.59,134.54,15.73190236]
[1744982798926,15.72979909,134.59,134.54,15.73190236]
[1744982799126,8.29940687,134.58,134.54,15.73190236]
[1744982799654,15.72979909,134.59,134.54,15.73190236]
[1744982801960,8.29940687,134.59,134.55,8.29940687]
[1744982803858,1e-08,134.6,134.55,8.29940687]
[1744982804040,1e-08,134.6,134.56,15.73051665]
[1744982805552,1e-08,134.6,134.57,8.29940687]
[1744982805855,1e-08,134.6,134.56,8.29940687]
[1744982806028,8.29940688,134.6,134.56,8.29940687]
[1744982807157,8.29940688,134.6,134.56,15.73076659]
[1744982807660,8.29940688,134.6,134.56,7.43135972]
[1744982808350,8.29940688,134.6,134.53,40.74]
[1744982808351,8.29940687,134.58,134.53,40.74]
[1744982808739,8.29940687,134.59,134.53,40.74]
[1744982808933,8.29940687,134.59,134.54,8.29940687]
[1744982809142,8.29940687,134.59,134.55,15.73115719]
[1744982809340,15.72894181,134.6,134.55,15.73115719]
[1744982811963,8.29940688,134.6,134.55,15.73115719]
[1744982812255,8.29940688,134.6,134.56,8.29940687]
[1744982812965,8.29940688,134.6,134.56,15.73060753]
[1744982813561,15.72890067,134.6,134.56,15.73060753]
[1744982814159,15.72890067,134.6,134.56,7.43120066]
[1744982815566,8.29940688,134.6,134.56,7.43120066]
[1744982816365,15.72889092,134.6,134.56,7.43120066]
[1744982817653,8.29940687,134.59,134.55,15.73131597]
[1744982817855,8.29940687,134.59,134.55,7.4319091]
[1744982818964,15.72942036,134.59,134.55,7.4319091]
[1744982819462,8.29940687,134.58,134.53,40.74]
[1744982819669,8.29940687,134.57,134.53,49.03940687]
[1744982819869,8.29940687,134.58,134.53,49.03940687]
[1744982820062,8.29940687,134.57,134.53,49.03940687]
[1744982820568,8.29940687,134.57,134.53,56.47249233]
[1744982820968,15.73012642,134.58,134.53,56.47249233]
[1744982822270,15.73012642,134.58,134.54,15.73201553]
[1744982823474,0.14216158,134.6,134.54,15.73201553]
[1744982823772,1e-08,134.6,134.58,8.29940687]
[1744982824071,1e-08,134.6,134.59,8.58373001]
[1744982825658,1e-08,134.6,134.59,16.01370251]
[1744982830277,1e-08,134.6,134.59,15.72937937]
[1744982831875,1e-08,134.6,134.59,7.4299725]
[1744982832576,1e-08,134.6,134.58,23.03940687]
[1744982832577,1e-08,134.6,134.58,7.4304275]
[1744982832773,1e-08,134.6,134.58,15.72983437]
[1744982833657,1e-08,134.6,134.58,7.4304275]
[1744982834059,8.29940688,134.6,134.57,14.74]
[1744982834458,8.29940688,134.6,134.57,22.17096328]
[1744982834657,1e-08,134.6,134.57,22.17096328]
[1744982834870,1e-08,134.6,134.57,30.47037015]
[1744982836763,1e-08,134.6,134.59,8.29940687]
[1744982837987,1e-08,134.6,134.59,16.01370251]
[1744982845186,1e-08,134.6,134.59,7.4299725]
[1744982845388,1e-08,134.6,134.58,7.43036459]
[1744982847187,1e-08,134.6,134.57,22.17096489]
[1744982847390,1e-08,134.6,134.57,30.47037176]
[1744982850397,1e-08,134.6,134.58,8.29940687]
[1744982851797,1e-08,134.6,134.58,15.72947839]
[1744982855712,1e-08,134.6,134.59,8.29940687]
[1744982856007,1e-08,134.6,134.59,15.72937937]
[1744982857898,1e-08,134.6,134.58,15.72993146]
[1744982858714,14.77549252,134.63,134.58,15.72993146]
[1744982859217,8.29940687,134.61,134.57,14.74]
[1744982859715,8.29940687,134.61,134.57,22.17102089]
[1744982859890,27.0912173,134.62,134.57,30.47042776]
[1744982860091,8.29940687,134.61,134.57,22.17102089]
[1744982861315,15.72846244,134.61,134.57,22.17102089]
[1744982861514,15.72793609,134.62,134.57,30.47042776]
[1744982862026,7.4272133,134.64,134.58,8.58373001]
[1744982862212,15.72662017,134.64,134.59,8.29940687]
[1744982863619,15.72662017,134.64,134.6,7.4294205]
[1744982863911,8.29940687,134.63,134.6,7.4294205]
[1744982864107,8.29940687,134.63,134.59,15.72921507]
[1744982864616,7.45695049,134.65,134.59,15.72921507]
[1744982864808,8.29940687,134.64,134.59,15.72921507]
[1744982865398,8.29940687,134.63,134.58,15.72964214]
[1744982865904,15.72754498,134.63,134.58,15.72964214]
[1744982873215,14.74,134.62,134.58,15.72964214]
[1744982873420,14.74,134.62,134.48,0.063]
[1744982873421,18.79181043,134.58,134.48,0.063]
[1744982873620,8.29940687,134.54,134.49,8.36240687]
[1744982873822,8.29940687,134.54,134.5,7.43493053]
[1744982874017,8.29940687,134.54,134.5,26.0]
[1744982875924,15.73214062,134.54,134.5,0.28432314]
[1744982876218,15.73214062,134.54,134.49,8.36240687]
[1744982876403,21.26639163,134.54,134.49,8.36240687]
[1744982878720,15.73214062,134.54,134.49,8.36240687]
[1744982881908,7.43273375,134.54,134.49,15.7977239]
[1744982882304,15.73214062,134.54,134.49,15.7977239]
[1744982884632,34.52395105,134.54,134.49,0.063]
[1744982884928,89.05545504,134.54,134.49,0.063]
[1744982885229,8.29940687,134.5,134.49,0.063]
[1744982885807,27.0912173,134.5,134.49,0.063]
[1744982886008,34.52616153,134.5,134.49,0.063]
[1744982886402,40.04849438,134.5,134.49,0.063]
[1744982887928,26.22730749,134.49,134.48,0.063]
[1744982888111,42.80002915,134.49,134.48,0.063]
[1744982888513,18.64964886,134.47,134.46,0.063]
[1744982888715,60.28884478,134.47,134.45,0.063]
[1744982889030,23.03940687,134.46,134.45,0.063]
[1744982889403,28.56173972,134.46,134.45,0.063]
[1744982890009,7.43770918,134.45,134.42,0.063]
[1744982890204,21.2594489,134.45,134.42,0.063]
[1744982890409,35.9994489,134.45,134.42,0.063]
[1744982891414,38.74903508,134.45,134.42,0.063]
[1744982892324,18.79181043,134.44,134.42,0.063]
[1744982892526,8.29940687,134.43,134.42,0.063]
[1744982893514,15.73822261,134.43,134.42,0.063]
[1744982903346,34.53003304,134.43,134.42,0.063]
[1744982909450,34.38787147,134.43,134.42,0.063]
[1744982909748,34.53003304,134.43,134.42,0.063]
[1744982912627,44.79181043,134.4,134.39,0.063]
[1744982912822,86.28884478,134.4,134.39,0.063]
[1744982913018,101.02884478,134.4,134.39,0.063]
[1744982913945,108.46932097,134.4,134.39,0.063]
[1744982914852,75.27169349,134.4,134.39,0.063]
[1744982916451,108.46932097,134.4,134.39,0.063]
[1744982919457,108.3271594,134.4,134.39,0.063]
[1744982919746,108.46932097,134.4,134.39,0.063]
[1744982919958,113.95655726,134.4,134.39,0.063]
[1744982922536,116.70083214,134.4,134.39,0.063]
[1744982923858,116.73062954,134.4,134.39,0.063]
[1744982929472,83.53300206,134.4,134.39,0.063]
[1744982930259,116.73062954,134.4,134.39,0.063]
[1744982931853,101.99062954,134.4,134.39,0.063]
[1744982932063,83.53300206,134.4,134.39,0.063]
[1744982935074,68.79300206,134.4,134.39,0.063]
[1744982937073,68.65084049,134.4,134.39,0.063]
[1744982937267,68.79300206,134.4,134.39,0.063]
[1744982943967,101.99062954,134.4,134.39,0.063]
[1744982944682,18.79181043,134.39,134.37,0.063]
[1744982944862,13.81644056,134.38,134.37,0.063]
[1744982945588,16.56071544,134.38,134.37,0.063]
[1744982945877,24.002299,134.38,134.37,0.063]
[1744982946969,38.742299,134.38,134.37,0.063]
[1744982947167,24.14446057,134.38,134.37,0.063]
[1744982947485,24.002299,134.38,134.37,0.063]
[1744982947863,42.79410943,134.38,134.37,0.063]
[1744982948081,68.79410943,134.38,134.37,0.063]
[1744982948280,68.79410943,134.38,134.33,0.063]
[1744982948281,87.39806835,134.38,134.33,0.063]
[1744982948462,8.29940687,134.34,134.33,0.063]
[1744982949069,13.81644056,134.34,134.33,0.063]
[1744982949599,16.57388158,134.34,134.33,0.063]
[1744982950685,24.01768089,134.34,134.33,0.063]
[1744982952665,42.80949132,134.34,134.33,0.063]
[1744982952873,76.0071188,134.34,134.33,0.063]
[1744982953060,42.80949132,134.34,134.33,0.063]
[1744982955689,24.01768089,134.34,134.33,0.063]
[1744982955989,16.57388158,134.34,134.33,0.063]
[1744982956869,24.01768089,134.34,134.33,0.063]
[1744982957080,21.26023987,134.34,134.33,0.063]
[1744982962093,5.51703369,134.34,134.33,0.063]
[1744982962998,12.95974234,134.36,134.33,0.063]
[1744982963177,8.29940687,134.35,134.33,0.063]
[1744982964095,15.74274675,134.35,134.33,0.063]
[1744982964301,5.51703369,134.34,134.33,0.063]
[1744982964484,13.81644056,134.34,134.33,0.063]
[1744982965303,21.26023987,134.34,134.33,0.063]
[1744982966385,12.960833,134.34,134.33,0.063]
[1744982966696,5.51703369,134.34,134.33,0.063]
[1744982966887,12.960833,134.34,134.33,0.063]
[1744982967701,40.0520503,134.34,134.33,0.063]
[1744982968994,42.8047487,134.34,134.33,0.063]
[1744982969201,42.66258713,134.34,134.33,0.063]
[1744982969498,42.8047487,134.34,134.33,0.063]
[1744982972119,24.01293827,134.34,134.33,0.063]
[1744982972404,15.7135314,134.34,134.33,0.063]
[1744982973702,8.26973209,134.34,134.33,0.063]
[1744982974406,41.74294352,134.35,134.33,0.063]
[1744982974697,7.44292018,134.36,134.33,0.063]
[1744982974894,8.44156844,134.37,134.33,0.063]
[1744982974895,15.74181961,134.37,134.33,0.063]
[1744982975088,41.74181961,134.37,134.33,0.063]
[1744982975681,8.29940687,134.36,134.33,0.063]
[1744982976005,41.74181961,134.37,134.33,0.063]
[1744982976884,5.50952252,134.36,134.33,0.063]
[1744982977703,5.50952252,134.36,134.33,8.36240687]
[1744982977910,5.50952252,134.36,134.35,8.29940687]
[1744982978088,5.50952252,134.36,134.35,8.58373001]
[1744982978805,26.0,134.41,134.35,8.58373001]
[1744982978992,33.44027206,134.41,134.38,8.29940687]
[1744982979188,7.44027206,134.41,134.37,8.29940687]
[1744982979632,7.44027206,134.41,134.38,8.29940687]
[1744982981603,15.73967893,134.41,134.37,8.29940687]
[1744982986585,15.73967893,134.41,134.36,8.29940687]
[1744982987380,15.73967893,134.41,134.36,15.7420835]
[1744982987613,15.73967893,134.41,134.37,8.29940687]
[1744982988683,8.29940687,134.41,134.37,8.29940687]
[1744982988890,33.46900323,134.43,134.39,8.29940687]
[1744982989206,41.7684101,134.43,134.39,8.29940687]
[1744982989594,8.29940687,134.42,134.37,8.29940687]
[1744982989799,8.29940687,134.41,134.36,15.74181204]
[1744982990108,8.29940687,134.41,134.37,8.29940687]
[1744982990411,8.29940687,134.42,134.38,8.29940687]
[1744982990711,8.29940687,134.42,134.37,8.29940687]
[1744982991214,7.43992262,134.41,134.37,15.74148592]
[1744982992410,7.43992262,134.41,134.38,8.29940687]
[1744982993196,15.73906908,134.42,134.38,8.29940687]
[1744982993396,7.43966221,134.42,134.38,8.29940687]
[1744982994633,7.43966221,134.42,134.38,15.74083206]
[1744982995619,15.73906908,134.42,134.38,15.74083206]
[1744982997291,15.73906908,134.42,134.37,15.74127462]
[1744982998416,15.73906908,134.42,134.38,8.29940687]
[1744982999009,7.43966221,134.42,134.38,8.29940687]
[1744982999823,7.43966221,134.42,134.38,15.74098489]
[1744983003023,8.29940687,134.4,134.37,14.74]
[1744983003819,8.29940687,134.4,134.35,15.74247544]
[1744983004020,8.29940687,134.38,134.33,22.24682761]
[1744983004320,8.29940687,134.38,134.33,0.063]
[1744983004496,26.0,134.4,134.36,8.29940687]
[1744983004700,34.29940687,134.4,134.35,8.29940687]
[1744983004910,15.74072881,134.39,134.34,15.74278514]
[1744983005622,8.29940687,134.38,134.34,15.74278514]
[1744983006920,8.29940687,134.38,134.33,15.80652682]
[1744983008125,7.44163288,134.38,134.34,8.29940687]
[1744983008313,26.0,134.4,134.36,8.29940687]
[1744983008625,26.0,134.4,134.35,8.29940687]
[1744983008626,34.29940687,134.4,134.35,8.29940687]
[1744983008920,8.29940687,134.38,134.34,8.29940687]
[1744983009303,8.29940687,134.39,134.34,8.29940687]
[1744983009506,26.94905573,134.39,134.34,8.29940687]
[1744983010218,34.39033894,134.39,134.34,15.74274641]
[1744983010431,26.0,134.4,134.37,8.29940687]
[1744983010603,18.64964886,134.42,134.38,8.29940687]
[1744983010803,26.94905573,134.42,134.38,8.29940687]
[1744983011009,26.94905573,134.42,134.37,8.29940687]
[1744983011620,34.3888326,134.42,134.37,8.29940687]
[1744983011922,34.3888326,134.42,134.37,15.74153124]
[1744983014629,34.3888326,134.42,134.37,8.29940687]
[1744983015128,8.29940687,134.41,134.37,8.29940687]
[1744983015429,8.29940687,134.39,134.35,23.03940687]
[1744983015727,8.29940687,134.39,134.34,7.44356118]
[1744983015930,8.29940687,134.39,134.34,15.74296805]
[1744983016315,15.73918374,134.42,134.37,8.29940687]
[1744983016514,21.5449537,134.41,134.37,8.29940687]
[1744983016720,7.44047619,134.4,134.37,8.29940687]
[1744983016920,15.73988306,134.4,134.36,8.29940687]
[1744983017159,8.29940687,134.39,134.35,8.29940687]
[1744983017730,15.73988306,134.4,134.35,15.74258792]
[1744983018133,15.73988306,134.4,134.36,8.29940687]
[1744983018328,15.88171708,134.41,134.36,8.29940687]
[1744983018827,15.88171708,134.41,134.37,8.29940687]
[1744983021529,2.75926897,134.4,134.37,8.29940687]
[1744983022538,10.19995274,134.4,134.37,8.29940687]
[1744983023218,7.44068377,134.4,134.37,8.29940687]
[1744983023628,15.88177289,134.41,134.37,8.29940687]
[1744983024740,15.88177289,134.41,134.37,15.74152322]
[1744983025341,15.88177289,134.41,134.37,7.44211635]
[1744983025644,15.88177289,134.41,134.37,15.74152322]
[1744983025934,15.88177289,134.41,134.37,8.29940687]
[1744983027154,15.88177289,134.41,134.36,15.74194335]
[1744983028745,8.29940687,134.4,134.35,15.74242924]
[1744983029843,34.53224713,134.39,134.34,8.29940687]
[1744983030346,34.53224713,134.39,134.34,15.74320506]
[1744983031046,34.53224713,134.39,134.35,8.29940687]
[1744983035551,8.29940687,134.41,134.35,7.44318896]
[1744983035749,26.94905573,134.42,134.37,8.29940687]
[1744983035953,8.44156844,134.41,134.36,8.29940687]
[1744983036157,2.75991652,134.4,134.36,8.29940687]
[1744983036633,10.200562,134.4,134.36,15.74204336]
[1744983036834,7.44064548,134.4,134.36,15.74204336]
[1744983037334,7.58235537,134.41,134.36,15.74204336]
[1744983037533,15.88176224,134.41,134.37,8.29940687]
[1744983037951,15.88176224,134.41,134.36,15.74204336]
[1744983038464,26.94905573,134.4,134.35,8.29940687]
[1744983038638,8.44156844,134.39,134.34,8.29940687]
[1744983039136,0.14216157,134.39,134.35,8.29940687]
[1744983039445,15.73960067,134.41,134.36,8.29940687]
[1744983039662,7.4401938,134.41,134.37,8.29940687]
[1744983039848,2.75997461,134.4,134.37,8.29940687]
[1744983040346,2.75997461,134.4,134.38,8.29940687]
[1744983040546,2.75997461,134.4,134.38,15.74070625]
[1744983040748,2.75997461,134.41,134.38,15.74070625]
[1744983041251,2.75997461,134.41,134.39,8.29940687]
[1744983041460,2.75997461,134.41,134.38,8.29940687]
[1744983042054,2.75997461,134.4,134.38,8.29940687]
[1744983042447,2.75997461,134.4,134.37,15.74124845]
[1744983043162,15.73942783,134.41,134.37,15.74124845]
[1744983044658,53.0912173,134.4,134.33,7.50701226]
[1744983044956,53.0912173,134.4,134.37,8.29940687]
[1744983044957,26.0,134.4,134.37,8.29940687]
[1744983045461,26.0,134.4,134.36,8.29940687]
[1744983046163,26.0,134.4,134.37,8.29940687]
[1744983046458,7.44002096,134.41,134.37,8.29940687]
[1744983046661,2.76151777,134.4,134.37,8.29940687]
[1744983046958,10.20217045,134.4,134.37,8.29940687]
[1744983047360,2.76151777,134.4,134.38,8.29940687]
[1744983047659,2.76151777,134.4,134.39,8.29940687]
[1744983048358,2.76151777,134.41,134.39,8.29940687]
[1744983048536,10.20150602,134.41,134.38,8.29940687]
[1744983049350,15.73939512,134.41,134.37,8.29940687]
[1744983049735,7.43998825,134.41,134.37,8.29940687]
[1744983049945,2.76212839,134.4,134.38,8.29940687]
[1744983050145,2.76212839,134.4,134.37,8.29940687]
[1744983051364,7.44102983,134.39,134.36,8.29940687]
[1744983052040,7.44102983,134.39,134.34,48.16366967]
[1744983052239,7.44102983,134.39,134.36,8.29940687]
[1744983052761,26.23228662,134.4,134.36,8.29940687]
[1744983052945,2.76226694,134.39,134.36,8.29940687]
[1744983053866,26.23228662,134.4,134.36,8.29940687]
[1744983054472,7.44047619,134.4,134.37,8.29940687]
[1744983055372,2.76280794,134.39,134.37,8.29940687]
[1744983057479,2.76280794,134.39,134.38,8.29940687]
[1744983058770,2.76280794,134.41,134.39,7.44102983]
[1744983058979,2.76280794,134.41,134.4,8.29940687]
[1744983059672,2.76280794,134.42,134.4,15.73972657]
[1744983059840,2.76280794,134.42,134.41,8.29940687]
[1744983061066,0.03,134.43,134.41,8.29940687]
[1744983061564,0.03,134.43,134.42,8.29940687]
[1744983061871,0.03,134.43,134.39,8.29940687]
[1744983062451,0.03,134.43,134.4,8.29940687]
[1744983063172,18.64964886,134.41,134.34,24.09813712]
[1744983063369,26.94905573,134.41,134.36,8.29940687]
[1744983063569,26.94905573,134.41,134.37,8.29940687]
[1744983063750,18.79181043,134.41,134.34,14.72]
[1744983063957,27.0912173,134.41,134.37,8.29940687]
[1744983064175,7.44047619,134.4,134.37,8.29940687]
[1744983064476,8.29940687,134.41,134.37,15.74118816]
[1744983064649,7.46910285,134.43,134.4,8.29940687]
[1744983064851,0.03,134.43,134.41,8.29940687]
[1744983065371,7.46885757,134.43,134.4,8.29940687]
[1744983065876,2.76337219,134.42,134.41,8.29940687]
[1744983066860,7.46895152,134.43,134.41,8.29940687]
[1744983067681,7.46895152,134.43,134.4,8.29940687]
[1744983071455,7.46895152,134.43,134.39,14.72]
[1744983071770,2.76306698,134.42,134.39,14.72]
[1744983071974,26.94905573,134.41,134.36,8.29940687]
[1744983072384,26.94905573,134.41,134.37,8.29940687]
[1744983072562,26.94905573,134.41,134.36,8.29940687]
[1744983072761,18.64964886,134.41,134.37,8.29940687]
[1744983072988,26.0900924,134.41,134.37,8.29940687]
[1744983074181,7.44044354,134.41,134.38,8.29940687]
[1744983074692,15.73985041,134.41,134.36,7.44257589]
[1744983074870,15.73985041,134.41,134.37,8.29940687]
[1744983075189,15.73877601,134.42,134.37,15.74152624]
[1744983075486,15.73877601,134.42,134.37,8.29940687]
[1744983076666,2.76141632,134.41,134.37,8.29940687]
[1744983076868,2.76141632,134.41,134.38,8.29940687]
[1744983077297,15.73877601,134.42,134.38,8.29940687]
[1744983078791,7.43936914,134.42,134.38,8.29940687]
[1744983080888,34.56017417,134.43,134.39,8.29940687]
[1744983081094,34.56017417,134.43,134.38,7.44150741]
[1744983081095,7.46895687,134.43,134.4,8.29940687]
[1744983081402,2.76118586,134.42,134.4,8.29940687]
[1744983084601,10.20079146,134.42,134.39,8.29940687]
[1744983084804,10.20079146,134.42,134.38,8.29940687]
[1744983085275,10.20079146,134.42,134.37,8.29940687]
[1744983085781,7.4396056,134.42,134.37,15.74146265]
[1744983086596,7.4396056,134.42,134.38,8.29940687]
[1744983086802,26.26069313,134.43,134.4,8.29940687]
[1744983087177,0.03,134.43,134.4,8.29940687]
[1744983087701,7.46886231,134.43,134.4,8.29940687]
[1744983087881,2.76108538,134.42,134.4,8.29940687]
[1744983088488,7.46886231,134.43,134.4,8.29940687]
[1744983090396,0.03,134.43,134.39,15.74015147]
[1744983092319,0.03,134.43,134.41,8.29940687]
[1744983092602,0.03,134.43,134.42,8.29940687]
[1744983093803,0.03,134.43,134.42,15.73877601]
[1744983098391,0.03,134.43,134.42,16.02309915]
[1744983099610,0.03,134.46,134.45,8.29940687]
[1744983099909,0.03,134.46,134.45,23.01940687]
[1744983100292,0.03,134.46,134.45,23.30373001]
[1744983100600,0.03,134.46,134.45,30.74143919]
[1744983104494,0.03,134.46,134.45,22.15770918]
[1744983105004,0.03,134.46,134.45,30.45711605]
[1744983108014,0.03,134.46,134.45,30.74143919]
[1744983119822,0.03,134.48,134.46,20.28432314]
[1744983120025,0.03,134.49,134.47,8.72589158]
[1744983120225,0.03,134.49,134.48,0.28432314]
[1744983121224,0.03,134.49,134.48,7.72037311]
[1744983122726,0.03,134.51,134.49,0.14216157]
[1744983123023,0.03,134.54,134.5,43.28373001]
[1744983123228,0.03,134.54,134.53,8.58373001]
[1744983124541,0.03,134.54,134.53,16.01701626]
[1744983126136,0.03,134.56,134.54,0.28432314]
[1744983126342,0.03,134.56,134.55,34.29940687]
[1744983126635,0.03,134.56,134.55,48.99940687]
[1744983127225,0.03,134.56,134.55,56.43158821]
[1744983130719,0.03,134.56,134.55,56.71591135]
[1744983147343,0.03,134.56,134.55,33.43218134]
[1744983147548,0.03,134.56,134.53,22.99940687]
[1744983147752,8.32940687,134.56,134.52,8.29940687]
[1744983147939,8.32940687,134.56,134.52,15.73296318]
[1744983148336,0.03,134.56,134.53,8.29940687]
[1744983149057,0.03,134.56,134.53,15.73253143]
[1744983149653,0.03,134.56,134.52,15.7330048]
[1744983149952,0.03,134.56,134.53,8.29940687]
[1744983150159,0.03,134.56,134.52,15.7330048]
[1744983150352,0.03,134.56,134.53,8.29940687]
[1744983150853,0.03,134.56,134.54,8.29940687]
[1744983151933,0.03,134.56,134.53,8.29940687]
[1744983152133,0.03,134.56,134.52,8.29940687]
[1744983153456,7.46162901,134.56,134.52,8.29940687]
[1744983153754,7.46162901,134.56,134.51,40.84216157]
[1744983153755,0.03,134.56,134.53,8.29940687]
[1744983156361,0.03,134.56,134.54,8.29940687]
[1744983157055,0.03,134.56,134.55,8.29940687]
[1744983158560,0.03,134.56,134.54,8.29940687]
[1744983158764,0.03,134.56,134.53,15.73252156]
[1744983160651,0.03,134.56,134.54,8.29940687]
[1744983161766,0.03,134.56,134.53,7.43311469]
[1744983161958,0.03,134.56,134.52,7.43376993]
[1744983162162,0.03,134.56,134.52,15.7331768]
[1744983162464,0.03,134.56,134.53,8.29940687]
[1744983163170,0.03,134.56,134.53,15.73260167]
[1744983164172,0.03,134.56,134.54,8.29940687]
[1744983165269,0.03,134.56,134.54,15.73172623]
[1744983166959,0.03,134.56,134.55,8.29940687]
[1744983167861,0.03,134.56,134.55,15.73158821]
[1744983169774,0.03,134.56,134.55,8.29940687]
[1744983172661,0.03,134.56,134.55,15.73158821]
[1744983179792,0.03,134.56,134.55,8.29940687]
[1744983180096,0.03,134.56,134.54,8.29940687]
[1744983181170,0.03,134.56,134.54,15.7320676]
[1744983182900,0.03,134.56,134.55,15.73158821]
[1744983192509,0.03,134.56,134.55,16.01591135]
[1744983193294,1e-08,134.56,134.55,16.15807292]
[1744983195410,1e-08,134.57,134.56,65.07613357]
[1744983195618,1e-08,134.57,134.56,54.58373001]
[1744983195783,1e-08,134.57,134.56,54.72589158]
[1744983196710,1e-08,134.57,134.56,62.15752059]
[1744983199005,1e-08,134.57,134.56,62.01535902]
[1744983199423,1e-08,134.57,134.56,62.15752059]
[1744983203024,1e-08,134.57,134.56,62.01535902]
[1744983203187,1e-08,134.57,134.56,62.15752059]
[1744983205897,1e-08,134.57,134.56,42.01535902]
[1744983206417,1e-08,134.57,134.56,26.0]
[1744983206805,1e-08,134.57,134.56,34.29940687]
[1744983207896,1e-08,134.57,134.56,42.01535902]
[1744983217514,1e-08,134.57,134.56,41.73103588]
[1744983217817,1e-08,134.57,134.56,26.0]
[1744983218620,1e-08,134.57,134.56,34.29940687]
[1744983219005,1e-08,134.57,134.56,41.73103588]
[1744983219401,1e-08,134.57,134.56,8.29940687]
[1744983219710,1e-08,134.57,134.55,34.29940687]
[1744983220215,1e-08,134.57,134.55,41.73152045]
[1744983220415,1e-08,134.57,134.55,34.29940687]
[1744983221418,1e-08,134.57,134.55,41.73150356]
[1744983222118,1e-08,134.57,134.56,8.29940687]
[1744983224621,1e-08,134.57,134.56,15.73103588]
[1744983228322,1e-08,134.57,134.56,16.01535902]
[1744983230116,1e-08,134.57,134.56,7.43162901]
[1744983230633,1e-08,134.57,134.54,7.43248624]
[1744983230922,1e-08,134.57,134.53,14.88]
[1744983230923,1e-08,134.57,134.53,56.61241499]
[1744983231308,8.29940688,134.57,134.53,14.88]
[1744983231507,8.29940687,134.55,134.51,33.43418334]
[1744983231706,8.29940687,134.55,134.51,41.73359021]
[1744983232017,8.29940687,134.56,134.52,8.29940687]
[1744983232324,15.73116907,134.56,134.52,8.29940687]
[1744983233203,8.29940687,134.56,134.52,8.29940687]
[1744983233703,15.73076463,134.57,134.52,8.29940687]
[1744983234226,1e-08,134.57,134.53,7.43328625]
[1744983234835,8.29940687,134.54,134.5,0.063]
[1744983235323,8.29940687,134.54,134.5,8.36240687]
[1744983235513,8.29940687,134.55,134.51,8.29940687]
[1744983235825,8.29940687,134.55,134.5,15.79727083]
[1744983236119,8.29940687,134.54,134.5,15.79727083]
[1744983236708,15.73214716,134.54,134.5,15.79727083]
[1744983237428,15.73214716,134.54,134.5,8.36240687]
[1744983237814,15.73214716,134.54,134.5,0.063]
[1744983238006,8.29940687,134.52,134.5,0.063]
[1744983238607,15.73325404,134.52,134.5,0.063]
[1744983238807,7.43384717,134.52,134.5,0.063]
[1744983239429,15.73325404,134.52,134.5,0.063]
[1744983239626,8.29940687,134.51,134.5,0.063]
[1744983241115,15.73379836,134.51,134.5,0.063]
[1744983245037,34.52560879,134.51,134.5,0.063]
[1744983247232,18.79181043,134.5,134.49,0.063]
[1744983247427,27.0912173,134.5,134.49,0.063]
[1744983249340,34.52616153,134.5,134.49,0.063]
[1744983250540,34.38399996,134.5,134.49,0.063]